Cogmind - Beta 10.2 @@@ ROGUE MODE // 2020.12.16 @ 13:23:40 // Halloween2020/ForbiddenLore Player: derk Result: Destroyed by H-88 Terminator with KE Penetrator Performance ------------- Evolutions (9) 4500 Regions Visited (29) 5800 Robots Destroyed (488) 2440 Value Destroyed (23156) 23156 Prototype IDs (88) 1760 Alien Tech Used (2) 400 Bonus (8376) 8376 TOTAL SCORE: 46432 Bonus ------- High Alert Combat Kills 3530 Follower Combat Kills 633 Aligned with FarCom 300 Met Data Miner 300 Met Zhirov 300 Met Warlord at Base 500 MAIN.C Attacked Warlord 500 Warlord Defense Kill 2516 Friendly Fire -203 Cogmind --------- Core Integrity 0/1600 Matter 161/300 Energy 270/280 System Corruption 22% Temperature Cool (0) Movement Flying (11) Location -1/Access Parts ------- > --- POWER (2) -------- Light Particle Reactor > --- PROPULSION (6) --- Experimental Gyrokinetic Inverter Combat Linear Gravjet Experimental Q-thruster Experimental Q-thruster Experimental Q-thruster Experimental Q-thruster > --- UTILITY (15) ----- Advanced Heat Sink Medium Storage Unit Small Battery Spectral Analyzer Advanced Targeting Computer Advanced Target Analyzer Makeshift Hacking Suite > --- WEAPON (2) ------- Force Lance > --- INVENTORY (8) ---- Quantum Reactor Improved Antigrav System Quantum Capacitor Antimissile System Advanced Variable Charge Gun HERF Cannon Improved Matter Neutralizer Peak State ------------ > --- POWER ------------ Reinforced Fission Core Light Quantum Reactor > --- PROPULSION ------- Improved Heavy Siege Treads Biometal Heavy Treads Advanced Heavy Siege Treads > --- UTILITY ---------- Fusion Compressor Advanced Heat Sink Experimental Heat Sink Advanced Cooling System Large Storage Unit High-capacity Storage Unit High-capacity Storage Unit Advanced Energy Well Quantum Capacitor Experimental Cloaking Device Improved Medium Armor Plating Centrium Light Armor Plating Makeshift Hacking Suite Ghost Barrier > --- WEAPON ----------- Matter Neutralizer Compact Tesla Bomb Launcher > --- INVENTORY -------- Light Quantum Reactor Armored Heavy Treads Advanced Heat Sink Improved Matter Compressor Quantum Capacitor Thermal Barrier Improved Force Field Component Analysis Suite Advanced Trap Extractor Heavy Wave Gun HERF Cannon Railgun Helical Railgun Smartbomb Launcher Advanced Datajack Plasma Lance [Rating: 179] Favorites ----------- Power Heavy Ion Engine Engine Heavy Ion Engine Power Core Micro Fission Core Reactor Light Antimatter Reactor Propulsion Light Treads Treads Light Treads Leg Biometal Leg Hover Unit Improved Antigrav System Flight Unit Experimental Q-thruster Utility Large Storage Unit Device Quantum Capacitor Storage Large Storage Unit Processor Advanced Targeting Computer Hackware Makeshift Hacking Suite Protection Layered Medium Armor Plating Weapon Flak Gun Energy Gun Advanced Variable Charge Gun Energy Cannon Heavy Proton Cannon Ballistic Gun Flak Gun Launcher Compact Tesla Bomb Launcher Impact Weapon Great Maul Slashing Weapon Plasma Sword Piercing Weapon Plasma Lance Special Melee Weapon Improved Datajack Build | -11 -10 -10 -9 -9 -9 -8 -8 -7 -7 -7 -7 -6 -6 -6 -6 -5 -5 -5 -5 -5 -4 -4 -4 -4 -4 -3 -3 -2 -1 ------- Run | Scr Mat Min Mat Min Exi Min Mat Fac Was Fac Sto Fac Low Low Dat Pro Fac Upp Upp Zhi Pro Fac Upp Upp War Pro Res Res Acc Slots Evolved 18 | . . . 2 . . . 2 2 . . . 2 . . . . 2 . . . . 2 . . . . 2 2 2 Power 1 | . . . . . . . . . . . . . . . . . . . . . . 1 . . . . . . . Propulsion 4 | . . . . . . . 1 . . . . . . . . . 1 . . . . . . . . . . 2 . Utility 13 | . . . 2 . . . 1 2 . . . 2 . . . . 1 . . . . 1 . . . . 2 . 2 Weapon . | . . . . . . . . . . . . . . . . . . . . . . . . . . . . . . Parts Attached 614 | 8 7 9 26 9 2 2 19 39 15 4 23 53 15 12 . 5 53 7 17 6 4 58 8 11 19 10 36 30 107 Power 44 | 1 2 1 4 1 . . 1 1 1 . 1 3 1 . . . 1 . 1 1 . 6 . . 1 . 2 1 14 Engine 13 | 1 2 . 4 1 . . 1 1 . . . 3 . . . . . . . . . . . . . . . . . Core 12 | . . 1 . . . . . . . . . . . . . . 1 . 1 . . 5 . . . . 1 1 2 Reactor 19 | . . . . . . . . . 1 . 1 . 1 . . . . . . 1 . 1 . . 1 . 1 . 12 Propulsion 95 | 2 . 1 4 2 . . 7 9 3 . 5 4 2 2 . 1 5 . . . . 5 . 2 . . 2 3 36 Treads 60 | 2 . 1 4 2 . . 6 9 3 . 5 4 2 2 . 1 5 . . . . 5 . 2 . . 2 3 2 Leg 15 | . . . . . . . . . . . . . . . . . . . . . . . . . . . . . 15 Wheel . | . . . . . . . . . . . . . . . . . . . . . . . . . . . . . . Hover 15 | . . . . . . . . . . . . . . . . . . . . . . . . . . . . . 15 Flight 5 | . . . . . . . 1 . . . . . . . . . . . . . . . . . . . . . 4 Utility 269 | 2 2 . 8 . 2 . 8 19 8 4 8 32 10 5 . 3 30 5 11 4 2 21 3 4 12 6 19 10 31 Device 118 | . . . 1 . . . 3 7 3 1 4 12 4 5 . 3 14 2 5 2 2 7 2 1 6 4 8 6 16 Storage 37 | 2 2 . 3 . 2 . . 2 . 1 . 2 . . . . 4 1 2 1 . 3 . 1 1 . 1 1 8 Processor 15 | . . . . . . . 1 . . . . 4 . . . . 1 . . . . . . 1 1 . 1 . 6 Hackware 6 | . . . . . . . 1 . . . . . . . . . . . 1 . . 2 . . . . 2 . . Protection 93 | . . . 4 . . . 3 10 5 2 4 14 6 . . . 11 2 3 1 . 9 1 1 4 2 7 3 1 Artifact . | . . . . . . . . . . . . . . . . . . . . . . . . . . . . . . Weapon 206 | 3 3 7 10 6 . 2 3 10 3 . 9 14 2 5 . 1 17 2 5 1 2 26 5 5 6 4 13 16 26 Energy Gun 10 | 2 . . . . . . . . . . . . . . . . . . . . . . . . . . 3 . 5 Energy Cannon 40 | . . . . 1 . . . . . . . . 1 1 . . . 1 2 . 1 10 2 1 3 1 5 5 6 Ballistic Gun 85 | 1 3 3 7 4 . 1 3 6 2 . 7 8 1 3 . 1 7 1 2 . 1 7 . . . 1 4 4 8 Ballistic Cannon . | . . . . . . . . . . . . . . . . . . . . . . . . . . . . . . Launcher 30 | . . 4 3 1 . 1 . 1 1 . 1 . . 1 . . 1 . 1 . . . 1 2 2 1 . 5 4 Special Weapon . | . . . . . . . . . . . . . . . . . . . . . . . . . . . . . . Impact Weapon 2 | . . . . . . . . 2 . . . . . . . . . . . . . . . . . . . . . Slashing Weapon 21 | . . . . . . . . 1 . . 1 3 . . . . 4 . . 1 . 5 2 2 1 1 . . . Piercing Weapon 6 | . . . . . . . . . . . . . . . . . . . . . . . . . . . 1 2 3 Special Melee Weapon 12 | . . . . . . . . . . . . 3 . . . . 5 . . . . 4 . . . . . . . Unidentified Prototypes 39 | . . . 3 . . . 1 . . . . 1 . 2 . . 2 1 . 4 . . . . 8 3 3 6 5 Parts Lost 116 | . . 3 2 1 . . 1 6 5 . 7 7 1 4 . . 2 . 3 . . 10 1 2 1 4 6 8 42 Power 15 | . . 1 . . . . . 1 1 . 1 2 . . . . . . . . . 1 . . . . 1 1 6 Propulsion 24 | . . 1 . 1 . . 1 2 . . 1 2 . 2 . . . . . . . . . 1 . . 1 1 11 Utility 52 | . . . . . . . . 2 4 . 3 2 1 . . . 1 . 3 . . 6 1 . . 3 2 5 19 Weapon 25 | . . 1 2 . . . . 1 . . 2 1 . 2 . . 1 . . . . 3 . 1 1 1 2 1 6 Highest Loss Streak 14 | . . 1 1 1 . . 1 2 3 . 4 3 1 2 . . 1 . 3 . . 4 1 1 1 2 2 3 14 Average Slot Usage (%) 85 | . 99 99 100 99 90 88 89 91 82 84 83 85 85 85 86 86 82 82 78 75 76 81 83 78 77 73 78 78 76 Engine 3 | . 14 2 10 11 11 11 9 6 4 . . 5 5 . . . . . . . . . . . . . . . . Core 2 | . . 11 . . . . . . . . . . . . . . 2 5 5 2 . 6 5 5 2 . 2 4 2 Reactor 2 | . . . . . . . . . 2 7 7 . . 6 6 6 2 . . 2 5 3 5 5 5 5 3 3 4 Treads 15 | . 28 27 22 21 22 22 26 22 16 15 15 12 13 12 13 13 14 11 11 11 11 9 10 10 10 10 9 13 4 Device 9 | . . . . . . . 7 4 6 7 4 7 6 10 13 13 10 11 16 16 17 12 12 14 15 14 12 17 18 Storage 17 | . 28 28 30 33 24 22 18 23 20 15 15 13 13 13 13 13 11 11 11 11 11 16 15 17 18 15 14 14 11 Processor 6 | . . . . . . . 7 7 7 7 7 13 13 13 13 13 11 11 8 5 5 5 3 . 1 5 6 2 6 Hackware 2 | . . . . . . . . 4 . . . . . . . . . . 1 5 5 9 10 5 4 . 8 8 6 Protection 9 | . . . 13 11 11 11 2 4 7 15 17 18 19 15 13 13 14 16 7 5 5 5 8 7 7 12 8 4 2 Energy Cannon 1 | . . . . 1 . . . . . . . . . . . . . 2 4 5 4 3 5 4 4 1 1 3 2 Ballistic Gun 9 | . 25 24 20 18 22 21 18 14 7 7 14 10 12 11 13 13 6 7 5 2 . 2 . . . 2 3 2 2 Slashing Weapon 1 | . . . . . . . . . 1 . . 1 . . . . 1 . . 2 5 3 4 4 4 4 1 . . Naked Turns . | . . . . . . . . . . . . . . . . . . . . . . . . . . . . . . Heaviest Build 178 | 14 43 43 70 73 118 118 121 149 139 129 134 130 140 146 139 146 163 166 163 118 115 152 153 178 177 159 172 170 170 Greatest Support 230 | 40 40 40 40 40 40 40 62 62 90 90 90 90 98 98 90 98 140 140 140 140 140 150 150 160 160 160 160 230 230 Greatest Overweight (x) 5 | . 1 1 1 1 2 2 5 3 2 1 1 1 1 1 1 1 2 1 1 . . 1 1 1 1 . 1 . 5 Average Overweight (x) . | . . . 1 1 1 2 1 2 1 1 1 1 1 1 1 1 1 1 . . . . . . . . . . . Largest Inventory Capacity 50 | 8 16 16 22 22 30 30 30 36 36 50 30 50 30 30 30 30 32 32 32 12 12 26 26 26 26 26 26 26 26 Average Capacity 25 | 6 10 16 20 22 27 30 30 35 34 30 30 30 30 30 30 30 30 32 13 12 12 21 26 26 26 26 26 26 16 Most Carried 36 | 8 16 16 22 22 30 30 30 36 36 30 30 30 30 30 27 30 32 32 32 12 12 26 26 26 26 26 26 26 20 Average Carried 24 | 4 9 15 19 21 25 29 28 31 33 28 29 28 29 28 27 29 28 31 12 11 11 18 24 25 25 24 24 24 12 Final Capacity 36 | 8 16 16 22 22 30 30 30 36 30 30 30 30 30 30 30 30 32 32 12 12 12 26 26 26 26 26 26 26 8 Final Carried 36 | 8 16 16 22 22 28 30 29 36 30 28 24 29 30 27 27 30 32 32 12 12 12 22 26 26 26 25 26 21 8 Class Distribution -------------------- 56% | Hauler-Mutant 17% | Trapper-Mutant 11% | Hacker-Mutant 9% | Mutant 4% | Scavenger-Mutant Dominant Class ---------------- Mutant | -10/Materials Mutant | -10/Mines Hauler-Mutant | -9/Materials Hauler-Mutant | -9/Mines Hauler-Mutant | -9/Exiles Hauler-Mutant | -8/Mines Hauler-Mutant | -8/Materials Hauler-Mutant | -7/Factory Hauler-Mutant | -7/Waste Hauler-Mutant | -7/Factory Hauler-Mutant | -7/Storage Trapper-Mutant | -6/Factory Trapper-Mutant | -6/Lower Caves Hauler-Mutant | -6/Lower Caves Hauler-Mutant | -6/Data Miner Hauler-Mutant | -5/Proximity Caves Hauler-Mutant | -5/Factory Hauler-Mutant | -5/Upper Caves Trapper-Mutant | -5/Upper Caves Trapper-Mutant | -5/Zhirov Mutant | -4/Proximity Caves Hauler-Mutant | -4/Factory Trapper-Mutant | -4/Upper Caves Trapper-Mutant | -4/Upper Caves Trapper-Mutant | -4/Warlord Hauler-Mutant | -3/Proximity Caves Hacker-Mutant | -3/Research Hacker-Mutant | -2/Research Scavenger-Mutant | -1/Access Resources | -11 -10 -10 -9 -9 -9 -8 -8 -7 -7 -7 -7 -6 -6 -6 -6 -5 -5 -5 -5 -5 -4 -4 -4 -4 -4 -3 -3 -2 -1 ----------- Run | Scr Mat Min Mat Min Exi Min Mat Fac Was Fac Sto Fac Low Low Dat Pro Fac Upp Upp Zhi Pro Fac Upp Upp War Pro Res Res Acc Matter Collected 13611 | 282 420 192 715 286 16 90 537 1012 412 . 647 1011 323 283 . 213 1351 126 442 70 120 824 119 293 203 365 638 586 2035 Remotely . | . . . . . . . . . . . . . . . . . . . . . . . . . . . . . . Salvage Created 26450 | 88 752 202 901 367 . 160 364 1489 720 . 945 1337 586 498 . 229 1548 305 546 433 380 3162 388 1109 978 1106 1463 1427 4967 Parts 1227 | 3 51 18 63 19 . 11 17 104 9 . 70 85 21 16 . 10 73 21 23 3 19 111 15 27 39 33 73 42 251 Haulers Intercepted 12 | . 1 . 2 . . . . 2 . . 2 . 1 . . . 1 . . . . . . . . . . 1 2 Recyclers Shooed 8 | . . . 4 . . . . . . . . . . . . . . . . . . . . . . . 1 . 3 Parts Field Recycled 19 | . . . . . . . . 19 . . . . . . . . . . . . . . . . . . . . . Retrieved Matter 235 | . . . . . . . . 235 . . . . . . . . . . . . . . . . . . . . . Parts Self-Destructed 257 | . . . . . . . . . . . . . 31 10 . 28 . 13 24 2 13 . 9 7 105 15 . . . Prevented 104 | . . . . . . . . . . . . . 8 . . . . 7 4 . 4 . 8 20 34 19 . . . Kills | -11 -10 -10 -9 -9 -9 -8 -8 -7 -7 -7 -7 -6 -6 -6 -6 -5 -5 -5 -5 -5 -4 -4 -4 -4 -4 -3 -3 -2 -1 ------- Run | Scr Mat Min Mat Min Exi Min Mat Fac Was Fac Sto Fac Low Low Dat Pro Fac Upp Upp Zhi Pro Fac Upp Upp War Pro Res Res Acc Combat Hostiles Destroyed 390 | . 19 11 22 5 . 3 5 21 3 . 11 17 6 9 . 6 21 7 10 . 8 39 5 18 17 21 20 22 64 Melee 24 | . . . . . . . . . . . . . . . . . 6 . . . . 8 . . . . 3 . 7 Guns 182 | . 19 4 16 2 . 3 5 17 2 . 11 17 4 8 . 6 15 5 7 . 3 6 . . . 2 11 4 15 Cannons 60 | . . . . . . . . . . . . . 2 . . . . 1 3 . 1 9 4 7 8 7 2 6 10 AOE 65 | . . 7 6 3 . . . 4 1 . . . . 1 . . . . . . 3 1 . 7 1 7 . 7 17 Classes Destroyed 24 | 1 6 1 3 . . . . 2 1 . 1 . 1 . . 1 . . . . . 1 1 . 4 . . 1 . Worker 25 | . . . 1 1 . . . 4 . . 1 5 . . . . 5 . . . . 3 . . . . . . 5 Builder 19 | . . 2 1 . . . . 2 . . . . . . . . . . . . . 2 . . . . . . 12 Tunneler 8 | . 2 . . 3 . 1 . 1 . . . . . . . . . . . . . . . . . . . . 1 Hauler 12 | . 1 . 2 . . . . 2 . . 2 . 1 . . . 1 . . . . . . . . . . 1 2 Recycler 13 | 1 . . 2 3 . 1 1 2 . . 1 1 . . . . . . . . . 1 . . . . . . . Minesweeper 4 | . . . . . . . . . . . . . 1 . . . . . 1 . . . 1 1 . . . . . Mechanic 1 | . . . . . . . . . . . . . . . . . . . . . . 1 . . . . . . . Operator 5 | . 1 . . . . . . . . . . 1 . . . . . . . . . 1 . . . . . 2 . Watcher 12 | . 1 . . . . . . 1 . . . 3 . . . . 1 . . . . 4 . . . . . . 2 Swarmer 88 | . 6 6 10 5 . 2 . 4 . . 1 4 . 2 . 3 2 4 2 . 4 4 . . 1 9 1 7 11 Saboteur 2 | . . . . . . . . . . . . . . . . . . . . . . . . . 1 1 . . . Grunt 117 | . 13 5 6 . . 1 5 7 . . 2 4 3 . . 2 7 . 8 . . 15 . 8 3 8 . 7 13 Brawler 11 | . . . . . . . . . . . 1 1 . . . . . . . . . 1 . 3 2 1 . 1 1 Duelist 9 | . . . 1 . . . . . . . 1 1 . . . . . . . . . . . 3 1 1 . . 1 Protector 2 | . . . . . . . . . . . . . . . . . . . . . . . . . 2 . . . . Sentry 37 | . . . 5 . . . . 4 . . 5 1 1 1 . . 4 1 . . . 3 1 2 . 1 5 . 3 Demolisher 2 | . . . . . . . . . . . . . . . . . . . . . . . . . . . . 2 . Hunter 53 | . . . . . . . . 1 . . 1 2 2 . . . 1 2 . . 3 8 2 2 1 . 4 2 22 Programmer 55 | . . . . . . . . 5 . . . 4 . 2 . . 7 . . . 1 8 2 . 2 . 10 1 13 Compactor 3 | . . . . . . . . . 3 . . . . . . . . . . . . . . . . . . . . Striker 4 | . . . . . . . . . . . . . . . . . . . . . . . . . 2 . . 2 . Executioner 2 | . . . . . . . . . . . . . . . . . . . . . . . . . 2 . . . . Samaritan 1 | . . . . . . . . . . . . . . . . . . . . . . . 1 . . . . . . Assembled 1 | . . . . . . . . . . . . . . . . 1 . . . . . . . . . . . . . Thug 1 | . . . . . . . . . . . . . . 1 . . . . . . . . . . . . . . . Savage 3 | . . . . . . . . . . . . . . 3 . . . . . . . . . . . . . . . Best Kill Streak 18 | 1 7 5 8 4 . 2 2 7 1 . 4 5 2 5 . 3 4 4 7 . 4 13 2 9 5 5 4 8 18 Combat Bots Only 12 | . 5 3 5 3 . 2 2 4 1 . 4 5 2 5 . 3 2 4 7 . 4 5 2 9 5 5 4 8 12 Max Kills in Single Turn 4 | 1 2 2 3 2 . 1 1 2 1 . 1 2 1 1 . 2 2 1 1 . 3 1 1 4 1 3 1 2 3 Gunslinging 1 | . 1 . . . . . . . . . . . . . . 1 . . . . . . . . . . . . . Exploded 4 | . . 2 2 1 . . . 2 1 . . . . 1 . . . . . . 3 1 . 4 1 3 . 2 2 Melee 1 | . . . . . . . . . . . . . . . . . 1 . . . . 1 . . . . 1 . 1 Uniques/NPCs Destroyed . | . . . . . . . . . . . . . . . . . . . . . . . . . . . . . . Combat | -11 -10 -10 -9 -9 -9 -8 -8 -7 -7 -7 -7 -6 -6 -6 -6 -5 -5 -5 -5 -5 -4 -4 -4 -4 -4 -3 -3 -2 -1 -------- Run | Scr Mat Min Mat Min Exi Min Mat Fac Was Fac Sto Fac Low Low Dat Pro Fac Upp Upp Zhi Pro Fac Upp Upp War Pro Res Res Acc Damage Taken 37736 | . 458 306 1159 215 . 118 480 1811 591 . 2172 1258 1064 1045 . 292 1540 368 1386 . 375 3516 971 718 1166 894 3193 3629 9011 Core 3678 | . 82 62 157 . . 18 50 141 72 . 132 81 108 75 . 6 49 56 73 . . 287 64 61 46 42 190 208 1618 Absorbed by Shields 6365 | . . . . . . . . . . . . . . . . 107 531 138 254 . 404 768 . 451 910 112 252 600 1838 Reduced by Siege Mode 1284 | . . . . . . . . . . . . . . . . . . . . . . 50 . 2 34 75 273 516 334 Core Remaining (%) 70 | 100 . 42 . . . 56 90 . . . 50 . . . . 68 . . . . 82 . . . . 56 85 80 . Volleys Fired 1269 | 2 55 20 65 21 . 10 31 61 18 . 41 62 34 22 . 18 61 15 30 . 32 124 40 41 53 52 88 69 204 Largest 2 | 2 2 2 2 2 . 2 2 2 2 . 2 2 2 2 . 2 2 2 2 . 1 2 1 1 1 1 2 2 2 Hottest 240 | 60 60 53 56 46 . 46 56 56 58 . 56 56 90 90 . 58 66 81 114 . 81 90 90 81 90 160 123 120 240 Shots Fired 1802 | 4 110 31 123 31 . 20 62 117 32 . 78 124 50 39 . 36 102 20 60 . 32 153 41 41 53 52 94 79 218 Gun 1238 | 4 110 22 115 26 . 20 62 112 16 . 78 124 32 34 . 36 102 14 44 . 20 56 . . . 5 80 23 103 Cannon 458 | . . . . . . . . . . . . . 18 3 . . . 6 14 . 12 97 41 36 52 42 14 40 83 Launcher 106 | . . 9 8 5 . . . 5 16 . . . . 2 . . . . 2 . . . . 5 1 5 . 16 32 Special . | . . . . . . . . . . . . . . . . . . . . . . . . . . . . . . Kinetic 1170 | 2 104 22 115 26 . 20 62 112 16 . 78 124 32 34 . 36 102 14 44 . 20 56 . . . 5 52 23 71 Thermal 223 | . . . . . . . . . . . . . 18 3 . . . . . . . 3 27 . 8 10 23 40 91 Explosive 68 | . . 9 8 5 . . . 5 16 . . . . 2 . . . . 2 . . . . 5 1 5 . 5 5 Electromagnetic 341 | 2 6 . . . . . . . . . . . . . . . . 6 14 . 12 94 14 36 44 32 19 11 51 Robot Hit Streak 31 | 2 8 7 16 5 . 7 7 16 12 . 12 24 15 13 . 13 15 13 17 . 23 30 16 9 8 31 25 12 20 Robot Miss Streak 9 | 1 4 2 4 3 . 2 6 8 9 . 7 5 2 2 . 5 2 2 1 . 1 6 2 2 3 2 3 1 4 Penetration Max 1 | . . . . . . . . . . . . 1 . . . . 1 . 1 . . 1 . . . . 1 . 1 Secondary Targets 17 | . 2 . 1 . . . . . . . 1 3 . 1 . 1 1 1 3 . . 2 . . . . . . 1 Max Gunslinging Chain 1 | . 1 . 1 . . . . . . . 1 1 . 1 . 1 1 1 1 . . 1 . . . . . . 1 Capacitor 410 | . . . . . . . . . . . . . . . . . . . . . . 58 41 36 52 42 30 40 111 Shots Hit Robots 1501 | 3 70 18 79 18 . 12 53 101 28 . 75 103 47 31 . 31 108 16 44 6 29 162 34 32 39 46 90 65 161 Core Hits 1026 | 2 33 25 42 14 . 7 40 99 17 . 84 87 36 30 . 25 49 10 23 4 13 60 9 36 23 29 31 50 148 Critical Hits 63 | . 1 . . . . . . 1 . . . . . . . . 13 2 3 . 4 5 5 . . 3 13 4 9 Critical Kills 22 | . . . . . . . . 1 . . . . . . . . 7 . 1 . 1 . . . . 1 4 1 6 Critical Parts Destroyed 39 | . 1 . . . . . . . . . . . . . . . 6 2 2 . 3 3 5 . . 2 9 3 3 Melee Attacks 201 | . . . . . . . . 7 . . 1 7 . . . . 41 . . 6 2 76 2 1 5 . 22 6 25 Impact 6 | . . . . . . . . 6 . . . . . . . . . . . . . . . . . . . . . Slashing 150 | . . . . . . . . 1 . . 1 6 . . . . 34 . . 6 2 74 2 1 5 . 18 . . Piercing 31 | . . . . . . . . . . . . . . . . . . . . . . . . . . . . 6 25 Entropic 4 | . . . . . . . . . . . . . . . . . . . . . . . . . . . 4 . . Sneak Attacks 27 | . . . . . . . . 4 . . . . . . . . 7 . . . . 11 2 1 1 . . . 1 Combat Hostiles 3 | . . . . . . . . . . . . . . . . . . . . . . 3 . . . . . . . Follow-up Attacks . | . . . . . . . . . . . . . . . . . . . . . . . . . . . . . . Damage Inflicted 59017 | 32 994 843 1802 743 . 213 778 2606 1689 . 1618 2140 1146 998 . 570 3159 435 1350 818 891 7144 1669 3112 1903 2835 3551 4563 11415 Guns 21732 | 32 994 231 1116 274 . 213 778 1697 517 . 1618 2096 626 775 . 570 2257 199 794 . 361 1069 . . . 108 2369 504 2534 Cannons 13520 | . . . . . . . . . . . . . 520 . . . . 236 338 . 314 2904 1373 1019 1408 1372 400 1371 2265 Explosions 16226 | . . 612 681 453 . . . 468 1172 . . . . 223 . . . . 218 . 216 254 56 1944 360 1355 . 2510 5704 Melee 7514 | . . . . . . . . 441 . . . 44 . . . . 902 . . 818 . 2917 240 149 135 . 782 178 908 Ramming 25 | . . . 5 16 . . . . . . . . . . . . . . . . . . . . . . . . 4 Kinetic 20311 | 6 942 231 1116 274 . 213 778 1697 517 . 1618 2096 626 775 . 570 2257 199 794 . 361 1069 . . . 108 1560 504 2000 Thermal 8547 | . . . . . . . . . . . . . 520 . . . . . 25 . 216 349 972 . 508 559 671 1565 3162 Explosive 9213 | . . 612 681 453 . . . 468 1172 . . . . 223 . . . . 193 . . . . 1944 128 1175 . 904 1260 Electromagnetic 13407 | 26 52 . . . . . . . . . . . . . . . . 236 338 . 314 2809 457 1019 1132 993 538 1412 4081 Impact 295 | . . . . . . . . 295 . . . . . . . . . . . . . . . . . . . . . Slashing 5844 | . . . . . . . . 146 . . . 44 . . . . 902 . . 818 . 2917 240 149 135 . 493 . . Piercing 1086 | . . . . . . . . . . . . . . . . . . . . . . . . . . . . 178 908 Entropic 289 | . . . . . . . . . . . . . . . . . . . . . . . . . . . 289 . . Highest Corruption 23 | . . . . . . . . 1 23 23 23 1 . 2 . . 6 2 . . . 6 8 6 . . 13 5 22 Average Corruption 5 | . . . . . . . . 1 15 23 23 1 . 1 . . 3 1 . . . 3 7 3 . . 8 3 8 Corruption Purged 27 | . . . . . . . . . . . . 1 . 2 . . 9 2 . . . . 2 6 . . 1 4 . Effects 414 | . . . . . . . . 11 18 3 73 4 . 12 . . 46 . . . . 49 34 12 . . 43 26 83 Message Errors 94 | . . . . . . . . 6 3 1 9 4 . 7 . . 9 . . . . 13 7 2 . . 8 9 16 Matter Fused 77 | . . . . . . . . . 3 1 8 . . . . . 13 . . . . 10 12 7 . . 8 5 10 Heat Flow Errors 26 | . . . . . . . . . 2 . 5 . . . . . 2 . . . . 2 . 1 . . 5 2 7 Energy Discharges 40 | . . . . . . . . 4 1 . 10 . . . . . 7 . . . . 5 2 1 . . 4 3 3 Parts Rejected 3 | . . . . . . . . . . . 1 . . . . . . . . . . 1 . . . . 1 . . Data Loss (minor) 59 | . . . . . . . . 1 3 1 9 . . 3 . . 8 . . . . 5 7 1 . . 7 4 10 Data Loss (major) 12 | . . . . . . . . . . . 4 . . . . . . . . . . 1 1 . . . 3 . 3 Misfires 8 | . . . . . . . . . . . 1 . . . . . . . . . . 5 1 . . . 1 . . Alerts 2 | . . . . . . . . . . . . . . . . . . . . . . . . . . . 1 . 1 Misdirections 27 | . . . . . . . . . . . 8 . . . . . . . . . . . . . . . 2 . 17 Targeting Errors 52 | . . . . . . . . . 5 . 13 . . 2 . . 6 . . . . 5 4 . . . 2 2 13 Weapon Failures 14 | . . . . . . . . . 1 . 5 . . . . . 1 . . . . 2 . . . . 1 1 3 Overload Shots 7 | . . . . . . . . . . . . . . . . . . . . . . . . . . . . . 7 Overflow Damage 2569 | . . 37 34 45 . . . 215 . . . . . . . . 140 . 17 238 33 673 93 255 127 303 7 79 273 Projectiles 349 | . . . . . . . . . . . . . . . . . . . 17 . . 41 . 67 39 18 . 49 118 Explosions 857 | . . 37 34 45 . . . 25 . . . . . . . . . . . . 33 71 4 78 83 285 . 7 155 Melee 1363 | . . . . . . . . 190 . . . . . . . . 140 . . 238 . 561 89 110 5 . 7 23 . Knockbacks 2 | . . . . 1 . . . 1 . . . . . . . . . . . . . . . . . . . . . Impact 2 | . . . . 1 . . . 1 . . . . . . . . . . . . . . . . . . . . . Kinetic . | . . . . . . . . . . . . . . . . . . . . . . . . . . . . . . Secondary . | . . . . . . . . . . . . . . . . . . . . . . . . . . . . . . Self-Inflicted Damage 1227 | . . 22 66 127 . . . . 335 . . . . 88 . . . . 55 . 51 71 31 . 100 43 . 2 236 Shots 38 | . . 1 2 4 . . . . 8 . . . . 2 . . . . 1 . 1 1 1 . 3 1 . 1 12 Rammed 4 | . . . 1 1 . . . . . . . . . . . . . . . . . . . . . . . . 2 Targets Rammed 4 | . . . 1 1 . . . . . . . . . . . . . . . . . . . . . . . . 2 Kicked . | . . . . . . . . . . . . . . . . . . . . . . . . . . . . . . Crushed . | . . . . . . . . . . . . . . . . . . . . . . . . . . . . . . Highest Temperature 468 | 20 76 9 66 12 . 15 31 17 135 . 284 238 53 138 . 69 254 168 233 . 102 326 199 199 180 . 296 468 230 Average Temperature 52 | 15 19 5 13 9 . 11 16 7 28 . 76 46 12 29 . 20 61 84 85 . 49 99 94 41 19 . 112 142 75 Received Heat Transfer 4215 | . 192 117 273 . . 54 243 444 . . 372 228 237 153 . 46 179 24 557 . . 414 9 64 95 48 134 96 236 Effects 5 | . . . . . . . . . . . . . . . . . 1 . . . . 2 . . . . . 2 . Shutdowns 2 | . . . . . . . . . . . . . . . . . . . . . . . . . . . . 2 . Energy Bleed 3 | . . . . . . . . . . . . . . . . . 1 . . . . 2 . . . . . . . Siege Activations 24 | . . . . . . . . . . . . . . . . . . . . . . 3 . 3 1 3 5 2 7 Total Turns 339 | . . . . . . . . . . . . . . . . . . . . . . 13 . 16 11 33 87 54 125 Longest Duration 53 | . . . . . . . . . . . . . . . . . . . . . . 9 . 8 11 14 41 53 36 Robots Corrupted 62 | . . . . . . . . . . . . . . . . . . 1 . . 1 15 2 5 8 5 3 5 17 Combat Hostiles 58 | . . . . . . . . . . . . . . . . . . 1 . . 1 15 1 4 8 5 3 5 15 Parts Fried 121 | . . . . . . . . 5 . . . 2 . 2 . . . 3 . . 3 33 3 4 13 11 4 12 26 Impact Corruptions 6 | . . . . . . . . 6 . . . . . . . . . . . . . . . . . . . . . Robots Melted 1 | . . . . . . . . . . . . . . . . . . . . . . . . . . . 1 . . Combat Hostiles 1 | . . . . . . . . . . . . . . . . . . . . . . . . . . . 1 . . Parts Melted 22 | . . . . . . 1 . . . . . . 3 . . . 3 1 . . 1 1 . . . . 9 1 2 Heat Transferred 7291 | . . . . . . . . . . . . . 629 . . . . . 50 . 150 250 650 . 312 400 679 1334 2837 Parts Sabotaged 3 | . . . . . . . . . . . . . . . . . . . . . . . . . 3 . . . . Parts Stolen . | . . . . . . . . . . . . . . . . . . . . . . . . . . . . . . Parts Stripped . | . . . . . . . . . . . . . . . . . . . . . . . . . . . . . . Power Chain Reactions 20 | . . . . . . . . . . . . . . . . . . . 1 . 2 2 2 . 2 1 . 3 7 Missiles Intercepted . | . . . . . . . . . . . . . . . . . . . . . . . . . . . . . . Alert | -11 -10 -10 -9 -9 -9 -8 -8 -7 -7 -7 -7 -6 -6 -6 -6 -5 -5 -5 -5 -5 -4 -4 -4 -4 -4 -3 -3 -2 -1 ------- Run | Scr Mat Min Mat Min Exi Min Mat Fac Was Fac Sto Fac Low Low Dat Pro Fac Upp Upp Zhi Pro Fac Upp Upp War Pro Res Res Acc Peak Influence 1525 | 5 297 272 313 236 . 97 101 310 82 32 184 157 . . . . 429 . . . . 1345 . . . . 334 526 1525 Initial 283 | . 3 72 . 121 . . 1 . 37 32 14 9 . . . . . . . . . . . . . . 143 187 283 Average 191 | 1 137 91 100 63 . 14 14 82 53 32 83 58 . . . . 139 . . . . 321 . . . . 173 245 990 Maximum Alert Level 4 | . 1 1 1 1 . . . 1 . . . . . . . . 2 . . . . 4 . . . . 1 2 4 Low Security (%) 72 | 100 75 87 79 83 . 100 100 93 100 100 100 100 . . . . 69 . . . . 38 . . . . 61 43 . Level 1 17 | . 24 12 20 16 . . . 6 . . . . . . . . 25 . . . . 29 . . . . 38 47 19 Level 2 4 | . . . . . . . . . . . . . . . . . 4 . . . . 17 . . . . . 8 12 Level 3 1 | . . . . . . . . . . . . . . . . . . . . . . 11 . . . . . . 3 Level 4 5 | . . . . . . . . . . . . . . . . . . . . . . 2 . . . . . . 64 Level 5 . | . . . . . . . . . . . . . . . . . . . . . . . . . . . . . . High Security . | . . . . . . . . . . . . . . . . . . . . . . . . . . . . . . Max Security . | . . . . . . . . . . . . . . . . . . . . . . . . . . . . . . Squads Dispatched 75 | . 4 . 3 . . . 2 9 . . 5 4 . . . . 7 . . . . 10 . 1 . 1 5 1 23 Investigation 16 | . 2 . . . . . 2 2 . . 1 . . . . . 1 . . . . 3 . . . . 2 1 2 Extermination 27 | . . . . . . . . 5 . . 1 4 . . . . 4 . . . . 5 . . . . 3 . 5 Reinforcement 20 | . 2 . 3 . . . . 1 . . 1 . . . . . 2 . . . . 2 . . . . . . 9 Assault 7 | . . . . . . . . . . . . . . . . . . . . . . . . 1 . 1 . . 5 Garrison 5 | . . . . . . . . 1 . . 2 . . . . . . . . . . . . . . . . . 2 Intercept . | . . . . . . . . . . . . . . . . . . . . . . . . . . . . . . Construction Impeded 9 | . . . 1 . . . . 1 . . . . . . . . 1 . . . . . . . . . . . 6 Haulers Reinforced 3 | . . . . . . . . . . . . . . . . . 1 . . . . . . . . . . . 2 Stealth | -11 -10 -10 -9 -9 -9 -8 -8 -7 -7 -7 -7 -6 -6 -6 -6 -5 -5 -5 -5 -5 -4 -4 -4 -4 -4 -3 -3 -2 -1 --------- Run | Scr Mat Min Mat Min Exi Min Mat Fac Was Fac Sto Fac Low Low Dat Pro Fac Upp Upp Zhi Pro Fac Upp Upp War Pro Res Res Acc Distress Signals 38 | . 1 . 1 1 . . 1 1 . . 2 . . . . . 3 . . . . 3 . . 2 . 1 11 11 Communications Jammed . | . . . . . . . . . . . . . . . . . . . . . . . . . . . . . . Distress Signals . | . . . . . . . . . . . . . . . . . . . . . . . . . . . . . . Times Spotted 641 | . 34 12 35 15 . 8 13 28 6 . 18 27 10 10 . 12 45 8 13 . 9 75 5 23 51 25 26 39 94 Peak Tracking Total 14 | . 4 3 7 4 . 3 3 5 3 . 5 5 5 5 . 5 6 5 8 . 4 6 2 12 12 5 7 10 14 Tactical Retreats 53 | . 1 . 1 5 . 2 1 1 . . . . 2 . . . 8 . 2 . . 9 . 2 8 1 . 4 6 Traps | -11 -10 -10 -9 -9 -9 -8 -8 -7 -7 -7 -7 -6 -6 -6 -6 -5 -5 -5 -5 -5 -4 -4 -4 -4 -4 -3 -3 -2 -1 ------- Run | Scr Mat Min Mat Min Exi Min Mat Fac Was Fac Sto Fac Low Low Dat Pro Fac Upp Upp Zhi Pro Fac Upp Upp War Pro Res Res Acc Traps Triggered 21 | . 2 . . . . . 4 2 . . 2 2 . . . . . . . . . 7 . . . . 1 . 1 Indirectly . | . . . . . . . . . . . . . . . . . . . . . . . . . . . . . . Trap Hack Attempts 232 | . . . . . . . . . . . . 81 . . . . 121 . . . . 30 . . . . . . . Triggered . | . . . . . . . . . . . . . . . . . . . . . . . . . . . . . . Disarmed 1 | . . . . . . . . . . . . . . . . . . . . . . 1 . . . . . . . Reprogrammed 38 | . . . . . . . . . . . . 12 . . . . 20 . . . . 6 . . . . . . . Reused 36 | . . . . . . . . . . . . 4 3 4 . . 14 . . . 1 5 . 1 3 . 1 . . Traps Extracted 38 | . . . . . . . . . . . . 15 2 . . . 15 . 1 . . 5 . . . . . . . Installed 64 | . . . . . . . . . . . . 7 9 4 . . 11 . 9 . 1 6 3 9 4 . 1 . . Triggered 60 | . . . . . . . . . . . . 4 5 . . . 18 1 . . 1 8 . 2 20 . 1 . . Power Sources Rigged 47 | . . . . . . . 14 18 . 1 3 4 . 3 . . 4 . . . . . . . . . . . . Exploded 21 | . . . . . . . 7 9 . . 3 1 . 1 . . . . . . . . . . . . . . . Machines | -11 -10 -10 -9 -9 -9 -8 -8 -7 -7 -7 -7 -6 -6 -6 -6 -5 -5 -5 -5 -5 -4 -4 -4 -4 -4 -3 -3 -2 -1 ---------- Run | Scr Mat Min Mat Min Exi Min Mat Fac Was Fac Sto Fac Low Low Dat Pro Fac Upp Upp Zhi Pro Fac Upp Upp War Pro Res Res Acc Machines Disabled 16 | . . . 2 . . . . . . . . . . 2 . . . . . . . 4 . 2 . . 1 2 3 Max in Single Turn 2 | . . . 1 . . . . . . . . . . 1 . . . . . . . 1 . 2 . . 1 1 1 Garrison Access 5 | . . . . . . . . 1 . . . . . . . . 1 . . . . 1 . . . . . 2 . Machines Sabotaged . | . . . . . . . . . . . . . . . . . . . . . . . . . . . . . . Garrisons Compromised . | . . . . . . . . . . . . . . . . . . . . . . . . . . . . . . Overloaded Fab Kills . | . . . . . . . . . . . . . . . . . . . . . . . . . . . . . . Fab Network Shutdowns 1 | . . . . . . . . . . . . . . . . . . . . . . 1 . . . . . . . Hacking | -11 -10 -10 -9 -9 -9 -8 -8 -7 -7 -7 -7 -6 -6 -6 -6 -5 -5 -5 -5 -5 -4 -4 -4 -4 -4 -3 -3 -2 -1 --------- Run | Scr Mat Min Mat Min Exi Min Mat Fac Was Fac Sto Fac Low Low Dat Pro Fac Upp Upp Zhi Pro Fac Upp Upp War Pro Res Res Acc Machines Accessed 103 | . 6 1 5 1 2 . 6 10 . . 4 9 1 2 4 1 12 2 . 4 . 16 1 . 2 . 5 1 8 Terminals 52 | . 6 . 3 . . . 6 5 . . 3 6 . . . 1 5 . . . . 10 . . . . 2 1 4 Fabricators 10 | . . . . . . . . 1 . . . 1 . . . . 1 . . . . 4 . . . . 1 . 2 Repair Stations 12 | . . . 1 . . . . 2 . . 1 1 . . . . 3 . . . . 1 . . . . 1 . 2 Recycling Units . | . . . . . . . . . . . . . . . . . . . . . . . . . . . . . . Scanalyzers 4 | . . . 1 . . . . 1 . . . . . . . . 1 . . . . . . . . . 1 . . Garrison Access 5 | . . . . . . . . 1 . . . 1 . . . . 2 . . . . 1 . . . . . . . Total Hacks 318 | . 21 1 16 1 2 . 23 28 . . 14 23 10 2 28 3 35 2 . 17 . 55 1 . 2 . 14 3 17 Successful 196 | . 12 1 13 1 2 . 6 19 . . 7 8 10 2 28 3 19 2 . 17 . 35 1 . 2 . 5 . 3 Failed 122 | . 9 . 3 . . . 17 9 . . 7 15 . . . . 16 . . . . 20 . . . . 9 3 14 Catastrophic 30 | . . . . . . . 3 4 . . 2 4 . . . . 1 . . . . 4 . . . . 3 2 7 Database Lockouts . | . . . . . . . . . . . . . . . . . . . . . . . . . . . . . . Manual 66 | . 7 . 2 . 1 . 5 10 . . 2 6 . . . . 3 . . . . 22 . . 1 . 4 . 3 Terminals 155 | . 21 . 8 . . . 23 13 . . 10 15 . . . 3 10 . . . . 35 . . . . 7 3 7 Fabricators 35 | . . . . . . . . 5 . . . 5 . . . . 4 . . . . 15 . . . . 1 . 5 Repair Stations 39 | . . . 4 . . . . 7 . . 4 2 . . . . 10 . . . . 3 . . . . 4 . 5 Recycling Units . | . . . . . . . . . . . . . . . . . . . . . . . . . . . . . . Scanalyzers 15 | . . . 4 . . . . 2 . . . . . . . . 7 . . . . . . . . . 2 . . Garrison Access 8 | . . . . . . . . 1 . . . 1 . . . . 4 . . . . 2 . . . . . . . Terminal Hacks 122 | . 11 1 5 1 2 . 5 4 . . 4 4 10 2 28 3 1 2 . 17 . 18 1 . 2 . 1 . . Record 33 | . . . . . 1 . . . . . . . 10 1 11 3 1 . . 5 . 1 . . . . . . . Part Schematic 14 | . 1 . . . . . . . . . . 1 . . 6 . . . . 4 . 2 . . . . . . . Robot Schematic 8 | . . . . . . . . . . . . . . . 8 . . . . . . . . . . . . . . Robot Analysis 5 | . . . 1 . . . . . . . . . . . . . . . . 4 . . . . . . . . . Prototype ID Bank 9 | . 1 . . . . . . . . . 1 . . . 3 . . . . 4 . . . . . . . . . Open Door 8 | . . 1 . 1 . . . . . . . . . 1 . . . 2 . . . . 1 . 2 . . . . Branch Access Points 5 | . . . 1 . . . 1 1 . . . 1 . . . . . . . . . 1 . . . . . . . Terminal Index 1 | . . . . . . . . . . . 1 . . . . . . . . . . . . . . . . . . Garrison Index 1 | . . . . . . . . . . . . . . . . . . . . . . 1 . . . . . . . Unreport Threat 7 | . . . 1 . . . 1 1 . . 1 . . . . . . . . . . 3 . . . . . . . Locate Traps 9 | . 4 . 1 . . . . 1 . . . . . . . . . . . . . 3 . . . . . . . Security Status 1 | . . . . . . . . . . . . . . . . . . . . . . 1 . . . . . . . Recall Investigation 1 | . . . . . . . . . . . . . . . . . . . . . . 1 . . . . . . . Recall Extermination 2 | . . . . . . . . . . . . . . . . . . . . . . 2 . . . . . . . Hauler Manifests 2 | . . . 1 . . . . . . . . 1 . . . . . . . . . . . . . . . . . Registered Components 1 | . . . . . . . 1 . . . . . . . . . . . . . . . . . . . . . . Zone Layout 14 | . 5 . . . . . 2 1 . . 1 1 . . . . . . . . . 3 . . . . 1 . . EX-Prototype ID Bank 1 | . . . . . 1 . . . . . . . . . . . . . . . . . . . . . . . . Fabricator Hacks 15 | . . . . . . . . 4 . . . 1 . . . . 2 . . . . 7 . . . . . . 1 Network Status 1 | . . . . . . . . 1 . . . . . . . . . . . . . . . . . . . . . Load Schematic 7 | . . . . . . . . 1 . . . 1 . . . . 1 . . . . 3 . . . . . . 1 Build 7 | . . . . . . . . 2 . . . . . . . . 1 . . . . 4 . . . . . . . Repair Station Hacks 25 | . . . 3 . . . . 4 . . 3 . . . . . 8 . . . . 2 . . . . 3 . 2 Scan Component 16 | . . . 2 . . . . 3 . . 2 . . . . . 4 . . . . 1 . . . . 2 . 2 Repair 9 | . . . 1 . . . . 1 . . 1 . . . . . 4 . . . . 1 . . . . 1 . . Recycling Unit Hacks . | . . . . . . . . . . . . . . . . . . . . . . . . . . . . . . Scanalyzer 11 | . . . 4 . . . . 2 . . . . . . . . 5 . . . . . . . . . . . . Insert Component 6 | . . . 2 . . . . 1 . . . . . . . . 3 . . . . . . . . . . . . Analyze 5 | . . . 2 . . . . 1 . . . . . . . . 2 . . . . . . . . . . . . Garrison Access Hacks 3 | . . . . . . . . 1 . . . . . . . . 1 . . . . 1 . . . . . . . Seal Access 3 | . . . . . . . . 1 . . . . . . . . 1 . . . . 1 . . . . . . . Unauthorized Hacks 20 | . 1 . 1 . . . 1 4 . . . 3 . . . . 2 . . . . 7 . . . . 1 . . Terminals 15 | . 1 . 1 . . . 1 3 . . . 2 . . . . 2 . . . . 4 . . . . 1 . . Track 3 | . 1 . . . . . . . . . . 1 . . . . . . . . . 1 . . . . . . . Assimilate 1 | . . . . . . . . . . . . . . . . . . . . . . 1 . . . . . . . Botnet 10 | . . . 1 . . . 1 2 . . . 1 . . . . 2 . . . . 2 . . . . 1 . . Operators 1 | . . . . . . . . 1 . . . . . . . . . . . . . . . . . . . . . Fabricators 5 | . . . . . . . . 1 . . . 1 . . . . . . . . . 3 . . . . . . . Prioritize 1 | . . . . . . . . . . . . . . . . . . . . . . 1 . . . . . . . Siphon 4 | . . . . . . . . 1 . . . 1 . . . . . . . . . 2 . . . . . . . Repair Stations . | . . . . . . . . . . . . . . . . . . . . . . . . . . . . . . Recycling Units . | . . . . . . . . . . . . . . . . . . . . . . . . . . . . . . Scanalyzers . | . . . . . . . . . . . . . . . . . . . . . . . . . . . . . . Garrison Access . | . . . . . . . . . . . . . . . . . . . . . . . . . . . . . . Data Cores Recovered 1 | . . . . . . . . . . . . 1 . . . . . . . . . . . . . . . . . Used 1 | . . . . . . . . . . . . 1 . . . . . . . . . . . . . . . . . Hacking Detections 76 | . 4 . 4 . . . 6 9 . . 4 9 . . . . 12 . . . . 14 . . . . 5 1 8 Full Trace Events 13 | . . . 1 . . . 2 2 . . 1 . . . . . 1 . . . . 2 . . . . 1 1 2 Feedback Events 2 | . . . . . . . . 1 . . . . . . . . 1 . . . . . . . . . . . . Corruption 1 | . . . . . . . . . . . . . . . . . 1 . . . . . . . . . . . . Hackware Fried 1 | . . . . . . . . 1 . . . . . . . . . . . . . . . . . . . . . Feedback Blocked . | . . . . . . . . . . . . . . . . . . . . . . . . . . . . . . Robot Schematics Acquired 8 | . . . . . . . . . . . . . . . 8 . . . . . . . . . . . . . . Robots Built . | . . . . . . . . . . . . . . . . . . . . . . . . . . . . . . Matter . | . . . . . . . . . . . . . . . . . . . . . . . . . . . . . . Time . | . . . . . . . . . . . . . . . . . . . . . . . . . . . . . . Total Robot Build Rating . | . . . . . . . . . . . . . . . . . . . . . . . . . . . . . . Part Schematics Acquired 18 | . 1 . 1 . . . . 1 . . . 1 . . 6 . 2 . . 4 . 2 . . . . . . . Parts Built 10 | . . . . . . . . 2 . . . . . . . . 1 . . . . 7 . . . . . . . Matter 898 | . . . . . . . . 152 . . . . . . . . 102 . . . . 644 . . . . . . . Time 297 | . . . . . . . . 102 . . . . . . . . 25 . . . . 170 . . . . . . . Total Part Build Rating 48 | . . . . . . . . 2 . . . . . . . . 1 . . . . 45 . . . . . . . Parts Repaired 9 | . . . 1 . . . . 1 . . 1 . . . . . 4 . . . . 1 . . . . 1 . . Time 370 | . . . 18 . . . . 26 . . 56 . . . . . 218 . . . . 28 . . . . 24 . . Parts Recycled . | . . . . . . . . . . . . . . . . . . . . . . . . . . . . . . Recycled Matter . | . . . . . . . . . . . . . . . . . . . . . . . . . . . . . . Retrieved Matter . | . . . . . . . . . . . . . . . . . . . . . . . . . . . . . . Retrieved Components . | . . . . . . . . . . . . . . . . . . . . . . . . . . . . . . Parts Scanalyzed 4 | . . . 1 . . . . 1 . . . . . . . . 2 . . . . . . . . . . . . Part Schematics Acquired 4 | . . . 1 . . . . 1 . . . . . . . . 2 . . . . . . . . . . . . Parts Damaged . | . . . . . . . . . . . . . . . . . . . . . . . . . . . . . . Bothacking | -11 -10 -10 -9 -9 -9 -8 -8 -7 -7 -7 -7 -6 -6 -6 -6 -5 -5 -5 -5 -5 -4 -4 -4 -4 -4 -3 -3 -2 -1 ------------ Run | Scr Mat Min Mat Min Exi Min Mat Fac Was Fac Sto Fac Low Low Dat Pro Fac Upp Upp Zhi Pro Fac Upp Upp War Pro Res Res Acc Used RIF Installer . | . . . . . . . . . . . . . . . . . . . . . . . . . . . . . . Robots Hacked 6 | . . . . . . . . . . . . 1 . . . . 4 . . . . 1 . . . . . . . Non-combat 6 | . . . . . . . . . . . . 1 . . . . 4 . . . . 1 . . . . . . . Combat . | . . . . . . . . . . . . . . . . . . . . . . . . . . . . . . Robot Hacks Applied 6 | . . . . . . . . . . . . 1 . . . . 4 . . . . 1 . . . . . . . parse_system 2 | . . . . . . . . . . . . 1 . . . . 1 . . . . . . . . . . . . no_distress 2 | . . . . . . . . . . . . . . . . . 1 . . . . 1 . . . . . . . find_chute 1 | . . . . . . . . . . . . . . . . . 1 . . . . . . . . . . . . find_fabricator 1 | . . . . . . . . . . . . . . . . . 1 . . . . . . . . . . . . Relay Couplers Released 13 | . . . . . . . . . . . . . . . . . . . . . . . . . . . 4 9 . Machine Destruction 2 | . . . . . . . . . . . . . . . . . . . . . . . . . . . . 2 . Programmers 11 | . . . . . . . . . . . . . . . . . . . . . . . . . . . 4 7 . Robots Rewired 3 | . . . . . . . . . . . . . . . . . . . . . . . . 2 . 1 . . . Allies Hacked . | . . . . . . . . . . . . . . . . . . . . . . . . . . . . . . Hacks Repelled . | . . . . . . . . . . . . . . . . . . . . . . . . . . . . . . Allies | -11 -10 -10 -9 -9 -9 -8 -8 -7 -7 -7 -7 -6 -6 -6 -6 -5 -5 -5 -5 -5 -4 -4 -4 -4 -4 -3 -3 -2 -1 -------- Run | Scr Mat Min Mat Min Exi Min Mat Fac Was Fac Sto Fac Low Low Dat Pro Fac Upp Upp Zhi Pro Fac Upp Upp War Pro Res Res Acc Total Allies 14 | . . 2 . 4 . . . . . . . . . . . 1 . . . . . 4 . 2 . 1 . . . Largest Group 3 | . . 2 2 3 3 3 2 . . . . . . . . 1 1 . . . . 3 . 2 1 1 1 . . Highest-Rated Group 138 | . . 42 42 40 40 40 24 . . . . . . . . 94 94 . . . . 138 . 70 40 64 64 . . Highest-Rated Ally 94 | . . 31 31 31 16 16 16 . . . . . . . . 94 94 . . . . 46 . 40 40 64 64 . . Total Orders 9 | . . . . 2 . . . . . . . . . . . . . . . . . . . . . . . 7 . STAY 1 | . . . . 1 . . . . . . . . . . . . . . . . . . . . . . . . . FOLLOW 1 | . . . . 1 . . . . . . . . . . . . . . . . . . . . . . . . . EXPLORE 7 | . . . . . . . . . . . . . . . . . . . . . . . . . . . . 7 . Ally Attacks 156 | . . 3 3 3 . 11 20 . 16 . . . . . . 32 11 . . . . 30 . 6 1 19 1 . . Total Damage 3385 | . . 61 43 61 . 169 225 . . . . . . . . 777 438 . . . . 822 . 149 21 619 . . . Kills 28 | . . 1 . . . 3 5 . . . . . . . . 6 2 . . . . 5 . 2 . 4 . . . Allies Corrupted 2 | . . . . . . . . . . . . . . . . . . . . . . 1 . . . . . . 1 Allies Melted . | . . . . . . . . . . . . . . . . . . . . . . . . . . . . . . Intel | -11 -10 -10 -9 -9 -9 -8 -8 -7 -7 -7 -7 -6 -6 -6 -6 -5 -5 -5 -5 -5 -4 -4 -4 -4 -4 -3 -3 -2 -1 ------- Run | Scr Mat Min Mat Min Exi Min Mat Fac Was Fac Sto Fac Low Low Dat Pro Fac Upp Upp Zhi Pro Fac Upp Upp War Pro Res Res Acc Robot Analysis Total 5 | . . . 1 . . . . . . . . . . . . . . . . 4 . . . . . . . . . Derelict Logs Recovered 17 | . . 2 . 1 . . . . . . . . 2 2 . 2 . 1 1 . 2 . 2 2 . . . . . Drone Launches 25 | . . . . . . . . . 16 . . . . . . . . . . . . . . . . . . 8 1 Drone Recoveries 6 | . . . . . . . . . . . . . . . . . . . . . . . . . . . . 6 . Exploration | -11 -10 -10 -9 -9 -9 -8 -8 -7 -7 -7 -7 -6 -6 -6 -6 -5 -5 -5 -5 -5 -4 -4 -4 -4 -4 -3 -3 -2 -1 ------------- Run | Scr Mat Min Mat Min Exi Min Mat Fac Was Fac Sto Fac Low Low Dat Pro Fac Upp Upp Zhi Pro Fac Upp Upp War Pro Res Res Acc Turns Passed 44866 | 90 1202 1273 1380 1674 1118 1549 1847 3126 280 46 963 3211 1787 1913 139 1620 3468 1377 1279 339 1511 3474 1052 1216 1545 1021 1526 1679 2161 Spaces Moved 22720 | 44 597 666 582 877 563 755 938 1351 112 21 424 1535 927 926 78 857 1474 739 709 192 901 1604 577 584 752 572 657 915 1791 Core 111 | 4 . . . . . . . . . . . . . . . . . . . . . . . . . . . . 107 Treads 21218 | 40 597 666 582 877 563 755 938 1351 112 21 424 1535 927 926 78 857 1474 739 709 192 901 1604 577 584 752 572 657 915 293 Legs 151 | . . . . . . . . . . . . . . . . . . . . . . . . . . . . . 151 Wheels . | . . . . . . . . . . . . . . . . . . . . . . . . . . . . . . Hover 1134 | . . . . . . . . . . . . . . . . . . . . . . . . . . . . . 1134 Flight 106 | . . . . . . . . . . . . . . . . . . . . . . . . . . . . . 106 Fastest Speed 11 | 50 160 160 180 180 160 200 175 195 180 180 180 180 180 180 180 180 180 180 160 160 160 160 160 160 160 160 160 161 11 Average Speed 169 | 150 164 179 180 180 194 200 177 197 184 180 180 180 180 180 180 180 180 180 160 160 160 165 167 185 189 160 178 161 72 Slowest Speed 270 | 160 180 180 180 180 200 200 260 220 200 180 180 180 180 180 180 180 200 180 180 160 160 180 185 190 190 160 200 173 270 Overloaded Moves . | . . . . . . . . . . . . . . . . . . . . . . . . . . . . . . Propulsion Burnouts . | . . . . . . . . . . . . . . . . . . . . . . . . . . . . . . Robots Hopped 2 | . . . . . . . . . . . . . . . . . . . . . . . . . . . . . 2 Cave-ins Triggered . | . . . . . . . . . . . . . . . . . . . . . . . . . . . . . . Teleports 1 | . . . . . . . . . . . . . . . . . . . . . . . . . . . . 1 . Exploration Rate (%) 62 | 4 95 98 58 96 72 99 48 35 73 2 54 28 88 80 69 97 31 82 84 61 90 39 75 79 77 71 14 53 36 Regions Visited 29 Branch Regions 17 Pre-discovered Areas 7 | . . 1 . . 1 . . . . . . . . . 1 . . . . 3 . . . 1 . . . . . Known Exits Taken 11 | . . . 1 . . . 1 . . 1 . 1 . . . 1 . 1 . . 1 1 1 . . 1 1 . . Unknown Exits Taken 16 | 1 1 1 . 1 1 1 . . . . 1 . 1 1 1 . 1 . 1 1 . . . 1 1 . . 1 . Scrap Searched 30 | . . 1 . 1 . 3 . . . . . . 4 5 . 3 . 2 4 . 2 . 3 2 . . . . . Spaces Dug 101 | . . 5 24 . . . . 3 . . 1 5 . 3 . . 11 . 13 . . 17 . . . . 7 2 10 Terrain Destroyed 805 | . . 50 49 62 . . . 18 49 . 1 6 1 23 . . 15 . 43 . 4 46 3 83 60 150 23 56 63 Melee 40 | . . . . . . . . 3 . . 1 5 . . . . 11 . . . . 17 . . . . 3 . . Projectile 96 | . . . . . . . . 3 . . . 1 1 3 . . 4 . 10 . 1 4 3 . 2 5 20 15 24 AOE 669 | . . 50 49 62 . . . 12 49 . . . . 20 . . . . 33 . 3 25 . 83 58 145 . 41 39 Terrain Rammed . | . . . . . . . . . . . . . . . . . . . . . . . . . . . . . . Walls Destroyed . | . . . . . . . . . . . . . . . . . . . . . . . . . . . . . . Machines Disabled . | . . . . . . . . . . . . . . . . . . . . . . . . . . . . . . Actions | -11 -10 -10 -9 -9 -9 -8 -8 -7 -7 -7 -7 -6 -6 -6 -6 -5 -5 -5 -5 -5 -4 -4 -4 -4 -4 -3 -3 -2 -1 --------- Run | Scr Mat Min Mat Min Exi Min Mat Fac Was Fac Sto Fac Low Low Dat Pro Fac Upp Upp Zhi Pro Fac Upp Upp War Pro Res Res Acc Total 27593 | 61 713 709 804 944 592 775 1080 1680 163 30 556 1889 1002 1142 77 899 2148 764 796 215 942 2234 662 713 871 664 918 1068 2482 Wait 1554 | . 26 10 85 19 . 3 22 106 . . 19 71 . 153 . 15 319 . 5 . 1 274 7 46 4 18 67 15 269 Move 22689 | 43 596 665 582 876 562 754 937 1351 111 20 423 1534 926 925 77 856 1473 738 708 191 900 1603 576 583 751 571 656 914 1787 Hop 2 | . . . . . . . . . . . . . . . . . . . . . . . . . . . . . 2 Pick Up 422 | 7 15 3 22 8 21 4 27 62 10 1 22 27 6 12 . 3 21 2 10 3 1 35 15 9 12 5 24 15 20 Fast Attach 156 | 8 2 1 5 . 1 . 6 1 1 2 2 6 1 . . . 9 . 6 6 . 17 1 2 9 . 6 8 56 Attach 157 | . . 2 7 2 . . 4 8 11 1 8 14 2 4 . . 10 . 3 . . 15 1 4 5 8 14 14 20 Detach 36 | 1 . . 1 . . . . . . . . 6 . . . . 2 . . . . 3 . . 3 2 4 2 12 Swap 303 | . 5 6 14 7 1 2 9 30 3 1 13 33 12 8 . 5 34 7 8 1 4 26 6 5 5 2 16 9 31 Drop 443 | . 14 2 23 10 7 2 30 36 9 4 24 33 12 11 . 2 42 2 17 8 1 25 11 8 20 3 20 16 51 Fire 1269 | 2 55 20 65 21 . 10 31 61 18 . 41 62 34 22 . 18 61 15 30 . 32 124 40 41 53 52 88 69 204 Melee 201 | . . . . . . . . 7 . . 1 7 . . . . 41 . . 6 2 76 2 1 5 . 22 6 25 Ram 2 | . . . . . . . . . . . . . . . . . . . . . . . . . . . . . 2 Kick . | . . . . . . . . . . . . . . . . . . . . . . . . . . . . . . Crush 1 | . . . . 1 . . . . . . . . . . . . . . . . . . . . . . . . . Escape Stasis 7 | . . . . . . . . . . . . 4 . . . . . . . . . . . . . . . . 3 Rewire 8 | . . . . . . . . . . . . . . . . . . . . . . . . 5 . 3 . . . Trap 343 | . . . . . . . 14 18 . 1 3 92 9 7 . . 136 . 9 . 1 36 3 9 4 . 1 . . Miscellaneous . | . . . . . . . . . . . . . . . . . . . . . . . . . . . . . . Route ------- -11/Scrapyard -10/Materials (discovered 5 exits: *Mat x3 / *Min x2) -10/Mines (discovered 2 exits: *Mat x2) -9/Materials (discovered 3 exits: *Mat x2 / *Min) -9/Mines (discovered 4 exits: *Mat x2 / *Exi / [*Zio]) -9/Exiles -8/Mines (discovered 2 exits: *Mat x2) -8/Materials -7/Factory (discovered 6 exits: *Fac x2 / Sto x2 / *Low x2) -7/Waste -7/Factory -7/Storage -6/Factory (discovered 4 exits: *Fac x2 / *Low x2) -6/Lower Caves -6/Lower Caves -6/Data Miner -5/Proximity Caves -5/Factory (discovered 5 exits: *Fac / *Upp x2 / Ext x2) -5/Upper Caves -5/Upper Caves (discovered 2 exits: *Fac / *Zhi) -5/Zhirov -4/Proximity Caves -4/Factory (discovered 6 exits: *Res x3 / *Upp x2 / Arm) -4/Upper Caves -4/Upper Caves (discovered 2 exits: *Res / *War) -4/Warlord -3/Proximity Caves -3/Research (discovered 5 exits: *Res x3 / *Tes x2) -2/Research -1/Access History --------- Turn | Location | Event 42 | -11/Scrapyard | Discovered new exit (range 14) 91 | -11/Scrapyard | Entered Materials 269 | -10/Materials | Discovered new exit (range 13) 324 | -10/Materials | Build established: Mutant 464 | -10/Materials | Discovered new exit (range 5) 557 | -10/Materials | Discovered new exit (range 13) 794 | -10/Materials | Discovered new exit (range 15) 1138 | -10/Materials | Discovered new exit (range 6) 1293 | -10/Materials | Entered Mines 1369 | -10/Mines | Discovered new exit (range 9) 1390 | -10/Mines | Core integrity fell below 50% 1461 | -10/Mines | Learned 2 Materials zone layouts 1560 | -10/Mines | Learned location of Zion (-7) 1712 | -10/Mines | Received a Rocket Launcher from a helpful Derelict 1847 | -10/Mines | Found the Drone Emporium 1856 | -10/Mines | Found Prototype Device 2002 | -10/Mines | Discovered new exit (range 7) 2566 | -10/Mines | Entered Materials 2566 | -9/Materials | Accompanied by 2 allies 2566 | -9/Materials | Evolved 2 slots: Utility x2 2566 | -9/Materials | Identified Bomb Drone Bay 2571 | -9/Materials | Led the pair of lost Derelicts to an unsafe place 3065 | -9/Materials | Repaired Broken Lgt. Treads 3127 | -9/Materials | Discovered new exit (range 9) 3140 | -9/Materials | Build established: Hauler-Mutant 3191 | -9/Materials | Identified exit to Mines 3713 | -9/Materials | Discovered new exit (range 16) 3946 | -9/Materials | Entered Mines 4009 | -9/Mines | Learned location of 1 exit from Materials 4303 | -9/Mines | A Derelict revealed a hidden shortcut to a safe place 4398 | -9/Mines | Joined a pair of Derelicts in attacking an 0b10 outpost 4491 | -9/Mines | Received a Mining Laser from a helpful Derelict 4508 | -9/Mines | Deemed a non-threat by the Exiles lab entrance 4669 | -9/Mines | Assembled infested the area 4808 | -9/Mines | Discovered new exit (range 5) 4974 | -9/Mines | Discovered new exit (range 5) 5060 | -9/Mines | Discovered new exit (range 10) 5067 | -9/Mines | Assisted by bots powering up and referring to "LRC-V3" 5302 | -9/Mines | Met a Derelict who couldn't figure out how to use a Trap Extractor 5620 | -9/Mines | Entered Exiles 5620 | -9/Exiles | Accompanied by 3 allies 5664 | -9/Exiles | Met 8R-AWN 5694 | -9/Exiles | Met EX-HEX 5772 | -9/Exiles | Met EX-DEC 6349 | -9/Exiles | Discovered new exit (range 11) 6455 | -9/Exiles | Met EX-BIN 6483 | -9/Exiles | Aligned with FarCom system 6485 | -9/Exiles | Given EX-Vault access code 6531 | -9/Exiles | Opened EX-Vault 6549 | -9/Exiles | Found PSU Rigger 6596 | -9/Exiles | Warned to stay clear of 0b10 Research branches 6738 | -9/Exiles | Left Exiles lab with PSU Rigger 6738 | -9/Exiles | Entered Mines 6738 | -8/Mines | Accompanied by 3 allies 6923 | -8/Mines | Discovered new exit (range 8) 7211 | -8/Mines | Discovered new exit (range 8) 8287 | -8/Mines | Entered Materials 8287 | -8/Materials | Accompanied by 2 allies 8287 | -8/Materials | Evolved 2 slots: Propulsion x1, Utility x1 8288 | -8/Materials | Identified exit to Factory 10134 | -8/Materials | Entered Factory 10134 | -7/Factory | Evolved 2 slots: Utility x2 10180 | -7/Factory | Repaired Lgt. Treads 10423 | -7/Factory | Garrison activated, responded to threat 10839 | -7/Factory | Discovered new exit (range 12) 12134 | -7/Factory | Discovered new exit (range 12) 12308 | -7/Factory | Hacking Suite fried by hacking feedback 12365 | -7/Factory | Discovered new exit (range 15) 12521 | -7/Factory | Fabricated Humpback (x1) 12578 | -7/Factory | Fabricated Humpback (x1) 12744 | -7/Factory | Identified exit to Storage 12744 | -7/Factory | Identified exit to Lower Caves 13260 | -7/Factory | Sucked down chute 13260 | -7/Factory | Entered Waste 13275 | -7/Waste | EMP discharged 13280 | -7/Waste | Spotted C-40 Crusher 13282 | -7/Waste | Spotted C-40 Crusher 13288 | -7/Waste | Spotted C-40 Crusher 13304 | -7/Waste | Spotted C-40 Crusher 13319 | -7/Waste | Destroyed C-40 Crusher 13324 | -7/Waste | Found Damper Plating 13334 | -7/Waste | Spotted C-40 Crusher 13352 | -7/Waste | Crushed by Compactor (1 part destroyed, 1 dropped) 13358 | -7/Waste | Crushed by Compactor (1 part destroyed) 13361 | -7/Waste | Crushed by Compactor (1 part destroyed) 13363 | -7/Waste | Destroyed C-40 Crusher 13375 | -7/Waste | EMP discharged 13375 | -7/Waste | System corruption reached 10% 13392 | -7/Waste | Lost 3 parts (3u) 13410 | -7/Waste | Spotted C-40 Crusher 13445 | -7/Waste | Crushed by Compactor (1 part destroyed, 1 dropped) 13448 | -7/Waste | Crushed by Compactor (1 part destroyed, 1 dropped) 13450 | -7/Waste | Destroyed C-40 Crusher 13475 | -7/Waste | EMP discharged 13513 | -7/Waste | Discovered new exit (range 15) 13540 | -7/Waste | Entered Factory 13550 | -7/Factory | Discovered exit to Storage (range 9) 13586 | -7/Factory | Entered Storage 13873 | -7/Storage | Repaired Hvy. Treads 14391 | -7/Storage | Garrison activated, responded to threat 14503 | -7/Storage | Discovered new exit (range 16) 14549 | -7/Storage | Entered Factory 14549 | -6/Factory | Evolved 2 slots: Utility x2 14562 | -6/Factory | Lost 4 parts (1n1u2w) 14805 | -6/Factory | Discovered new exit (range 9) 15078 | -6/Factory | Lost 3 parts (1p1n1w) 15169 | -6/Factory | Discovered new exit (range 11) 15878 | -6/Factory | Identified exit to Lower Caves 15952 | -6/Factory | Identified exit to Factory 16172 | -6/Factory | Build established: Trapper-Mutant 16934 | -6/Factory | Lost 3 parts (1n2u) 17114 | -6/Factory | Discovered exit to Factory (range 16) 17760 | -6/Factory | Entered Lower Caves 17865 | -6/Lower Caves | Attracted the attention of an 0b10 checkpoint 18043 | -6/Lower Caves | Learned location of 1 exit from Factory 18043 | -6/Lower Caves | Learned 8 Research zone layouts 18043 | -6/Lower Caves | Learned Factory trap positions 18043 | -6/Lower Caves | Learned Factory emergency access door positions 18043 | -6/Lower Caves | Learned Factory terminal intel 18043 | -6/Lower Caves | Learned Research garrison access intel 18515 | -6/Lower Caves | Encountered a Warlord checkpoint 19067 | -6/Lower Caves | Discovered new exit (range 9) 19367 | -6/Lower Caves | Learned Factory terminal intel 19419 | -6/Lower Caves | Found Imp. Powered Armor 19547 | -6/Lower Caves | Entered another Lower Caves area 19594 | -6/Lower Caves | Ambushed by wild Derelicts 19906 | -6/Lower Caves | Build established: Hauler-Mutant 20864 | -6/Lower Caves | Discovered new exit (range 5) 20866 | -6/Lower Caves | Learned 8 Factory zone layouts 21116 | -6/Lower Caves | Learned Factory security intel 21124 | -6/Lower Caves | Attracted the attention of an 0b10 checkpoint 21460 | -6/Lower Caves | Entered Data Miner 21460 | -6/Data Miner | Discovered new exit (range 6) 21495 | -6/Data Miner | Met Data Miner 21543 | -6/Data Miner | Learned location of Section 7 (-2) 21543 | -6/Data Miner | Acquired the access code to Warlord's prototype stash 21559 | -6/Data Miner | Received God Mode back door access code from Data Miner 21599 | -6/Data Miner | Entered Proximity Caves 21747 | -5/Proximity Caves | Escorted by Enhanced Grunt 21934 | -5/Proximity Caves | Learned location of 1 exit from Upper Caves 22170 | -5/Proximity Caves | Learned Factory terminal intel 22226 | -5/Proximity Caves | Spotted B-75 Beast 22240 | -5/Proximity Caves | Allies destroyed B-75 Beast 22832 | -5/Proximity Caves | Attracted the attention of an 0b10 checkpoint 22881 | -5/Proximity Caves | Discovered exit to Factory (range 8) 23219 | -5/Proximity Caves | Entered Factory 23219 | -5/Factory | Accompanied by 1 ally 23219 | -5/Factory | Evolved 2 slots: Propulsion x1, Utility x1 23220 | -5/Factory | Identified exit to Extension 23222 | -5/Factory | Identified exit to Factory 23223 | -5/Factory | Loaded intel: 90 trap records 23226 | -5/Factory | Loaded intel: 21 terminal locations 23693 | -5/Factory | Repaired Imp. Powered Armor 24266 | -5/Factory | Discovered new exit (range 12) 25737 | -5/Factory | Discovered new exit (range 11) 25813 | -5/Factory | Repaired Hvy. Treads 25943 | -5/Factory | Repaired Imp. Powered Armor 25994 | -5/Factory | Repaired Lyr. Medium Armor Plating 26196 | -5/Factory | Fabricated Hcp. Storage Unit (x1) 26687 | -5/Factory | Entered Upper Caves 26688 | -5/Upper Caves | Identified exit to Upper Caves 26725 | -5/Upper Caves | Attracted the attention of an 0b10 checkpoint 26799 | -5/Upper Caves | Learned Factory terminal intel 28064 | -5/Upper Caves | Entered another Upper Caves area 28159 | -5/Upper Caves | Lost 3 parts (3u) 28160 | -5/Upper Caves | Destroyed 7 combat bots 28586 | -5/Upper Caves | Discovered exit to Factory (range 6) 28591 | -5/Upper Caves | Learned location of 1 exit from Proximity Caves 28644 | -5/Upper Caves | Build established: Trapper-Mutant 29211 | -5/Upper Caves | Discovered new exit (range 15) 29343 | -5/Upper Caves | Entered Zhirov 29343 | -5/Zhirov | Discovered new exit (range 3) 29372 | -5/Zhirov | Met Zhirov 29419 | -5/Zhirov | Learned location of Quarantine (-2) 29419 | -5/Zhirov | Learned location of Testing (-3) 29419 | -5/Zhirov | Learned location of Command (-1) 29439 | -5/Zhirov | Zhirov requested help retrieving the SGEMP Prototype 29466 | -5/Zhirov | Found Alien Artifact 29466 | -5/Zhirov | Identified Integrated Reactor 29466 | -5/Zhirov | Installed Integrated Reactor, increased core energy generation (+10) 29488 | -5/Zhirov | Found Alien Artifact 29682 | -5/Zhirov | Entered Proximity Caves 30391 | -4/Proximity Caves | Build established: Mutant 30451 | -4/Proximity Caves | Learned Research security intel 30835 | -4/Proximity Caves | Learned location of 1 exit from Research 30886 | -4/Proximity Caves | Spotted B-86 Titan 31193 | -4/Proximity Caves | Entered Factory 31193 | -4/Factory | Evolved 2 slots: Power x1, Utility x1 31194 | -4/Factory | Identified exit to Research 31195 | -4/Factory | Loaded intel: 20 terminal locations 31494 | -4/Factory | Build established: Hacker-Mutant 31822 | -4/Factory | Fabricated Hcp. Storage Unit (x1) 31985 | -4/Factory | Found Quantum Capacitor 32745 | -4/Factory | Identified exit to Upper Caves 32745 | -4/Factory | Identified exit to Armory 33128 | -4/Factory | Build established: Hauler-Mutant 33187 | -4/Factory | Discovered exit to Research (range 11) 33426 | -4/Factory | Lost 4 parts (1p3u) 33527 | -4/Factory | Fabricated Powered Armor (x2) 33789 | -4/Factory | Fabricated Adv. Heavy Siege Treads? 33826 | -4/Factory | Incoming investigation squad redirected 33832 | -4/Factory | Repaired Imp. Powered Armor 33932 | -4/Factory | Fabricated Adv. Heavy Siege Treads? 34413 | -4/Factory | Discovered exit to Research (range 8) 34517 | -4/Factory | Lost 3 parts (3w) 34576 | -4/Factory | Local fabrication network quarantined 34667 | -4/Factory | Entered Upper Caves 35123 | -4/Upper Caves | Identified exit to Upper Caves 35271 | -4/Upper Caves | Attracted the attention of an 0b10 checkpoint 35335 | -4/Upper Caves | Build established: Trapper-Mutant 35694 | -4/Upper Caves | Learned 4 Research zone layouts 35719 | -4/Upper Caves | Entered another Upper Caves area 35719 | -4/Upper Caves | Discovered exit to Research (range 8) 36094 | -4/Upper Caves | Build established: Hauler-Mutant 36489 | -4/Upper Caves | Attracted the attention of an 0b10 outpost 36534 | -4/Upper Caves | Destroyed 9 combat bots 36560 | -4/Upper Caves | Build established: Trapper-Mutant 36707 | -4/Upper Caves | Discovered new exit (range 8) 36784 | -4/Upper Caves | Attracted the attention of an 0b10 checkpoint 36935 | -4/Upper Caves | Entered Warlord 36935 | -4/Warlord | Accompanied by 1 ally 36989 | -4/Warlord | Discovered new exit (range 9) 37504 | -4/Warlord | Warlord's base attacked by MAIN.C 37528 | -4/Warlord | Found Prototype Piercing Weapon 37827 | -4/Warlord | Met Warlord 37844 | -4/Warlord | Opened Warlord's prototype stash 37854 | -4/Warlord | Warlord forces counterattacked 37854 | -4/Warlord | Found Prototype Reactor 37854 | -4/Warlord | Identified Vortex Chain Reactor 37861 | -4/Warlord | Found Prototype Device 37861 | -4/Warlord | Identified Exp. Cloaking Device 37872 | -4/Warlord | Found Prototype Processor 37872 | -4/Warlord | Identified Exp. Armor Integrity Analyzer 37876 | -4/Warlord | Found Prototype Device 37876 | -4/Warlord | Identified Thermal Barrier 37892 | -4/Warlord | Found Prototype Hackware 38010 | -4/Warlord | Spotted Executioner 38020 | -4/Warlord | Destroyed Executioner 38146 | -4/Warlord | Opened side exit 38179 | -4/Warlord | Warlord base infiltrated, sounded retreat 38183 | -4/Warlord | Spotted Striker 38201 | -4/Warlord | Destroyed Striker 38229 | -4/Warlord | Spotted B-90 Cyclops 38321 | -4/Warlord | Build established: Hauler-Mutant 38345 | -4/Warlord | Spotted Striker 38362 | -4/Warlord | Spotted Striker 38373 | -4/Warlord | Destroyed Striker 38380 | -4/Warlord | Found Prototype Launcher 38417 | -4/Warlord | Spotted Executioner 38427 | -4/Warlord | Destroyed Executioner 38465 | -4/Warlord | Found Prototype Device 38480 | -4/Warlord | Entered Proximity Caves 38644 | -3/Proximity Caves | Attracted the attention of an 0b10 outpost 38704 | -3/Proximity Caves | Identified Adv. Kinecellerator 38872 | -3/Proximity Caves | Identified Chain Missile Launcher 39429 | -3/Proximity Caves | Discovered exit to Research (range 12) 39501 | -3/Proximity Caves | Entered Research 39501 | -3/Research | Accompanied by 1 ally 39501 | -3/Research | Evolved 2 slots: Utility x2 39502 | -3/Research | Identified exit to Testing 39503 | -3/Research | Identified exit to Research 39506 | -3/Research | Loaded intel: 4 garrison access locations 39530 | -3/Research | Found Prototype Processor 39530 | -3/Research | Identified Exp. Target Analyzer 39541 | -3/Research | Identified Ghost Barrier 39655 | -3/Research | Identified Vortex Lance 39831 | -3/Research | Build established: Hacker-Mutant 39905 | -3/Research | Found Quantum Capacitor 40214 | -3/Research | Found Gamma Bomb Array 40463 | -3/Research | Discovered exit to Testing (range 11) 40539 | -3/Research | System corruption reached 10% 40848 | -3/Research | Repaired Adv. Heavy Siege Treads 40864 | -3/Research | Incoming investigation squad redirected 40950 | -3/Research | Discovered exit to Research (range 3) 41027 | -3/Research | Entered another Research area 41027 | -2/Research | Warlord forces began assault on 0b10 41027 | -2/Research | Evolved 2 slots: Propulsion x2 41096 | -2/Research | Warlord destroyed during the assault 41137 | -2/Research | Research machine network offline 41579 | -2/Research | Borebot progress halted 41686 | -2/Research | Borebot progress halted 41983 | -2/Research | Found Prototype Launcher 41983 | -2/Research | Identified Com. Tesla Bomb Launcher 41987 | -2/Research | Found Com. Tesla Bomb Launcher 42054 | -2/Research | Spotted Striker 42201 | -2/Research | Spotted Striker 42220 | -2/Research | Spotted Striker 42237 | -2/Research | Destroyed Striker 42260 | -2/Research | Lost 3 parts (1n2u) 42266 | -2/Research | Destroyed 8 combat bots 42267 | -2/Research | Destroyed Striker 42282 | -2/Research | Spotted Executioner 42287 | -2/Research | Spotted Striker 42448 | -2/Research | Spotted Striker 42453 | -2/Research | Identified Transdimensional Reconstructor 42453 | -2/Research | Warped through subspace 42482 | -2/Research | Lost 3 parts (2u1w) 42540 | -2/Research | Spotted Executioner 42642 | -2/Research | Discovered new exit (range 16) 42706 | -2/Research | Entered Access 42706 | -1/Access | Evolved 2 slots: Utility x2 43352 | -1/Access | Lost 3 parts (1n1u1w) 43372 | -1/Access | Destroyed 7 combat bots 43426 | -1/Access | Destroyed 10 combat bots 43496 | -1/Access | Destroyed 12 combat bots 43500 | -1/Access | Lost 5 parts (1p2n2u) 43637 | -1/Access | Lost 8 parts (1p1n5u1w) 43659 | -1/Access | Incoming investigation squad redirected 43792 | -1/Access | Core integrity fell below 50% 43826 | -1/Access | Lost 14 parts (2p5n5u2w) 43864 | -1/Access | System corruption reached 10% 43927 | -1/Access | Lost 3 parts (2p1w) 43962 | -1/Access | Core integrity fell below 20% 44001 | -1/Access | First assault squad dispatched 44024 | -1/Access | Incoming assault squad redirected 44024 | -1/Access | Incoming assault squad redirected 44199 | -1/Access | Build established: Scavenger-Mutant 44226 | -1/Access | Incoming assault squad redirected 44250 | -1/Access | Found Prototype Processor 44250 | -1/Access | Identified Spectral Analyzer 44285 | -1/Access | Found Antimissile System 44533 | -1/Access | Incoming assault squad redirected 44757 | -1/Access | Garrison activated, responded to threat 44777 | -1/Access | Incoming assault squad redirected 44852 | -1/Access | Lost 3 parts (3u) 44867 | -1/Access | Destroyed by H-88 Terminator with KE Penetrator Last Messages --------------- 44822_ System corrupted: Substantial component data lost. 44825_ Slug penetrates Wall. 44828_ Acquired 70 matter. 44828_ Slug penetrates Wall. 44828_ Penetrated by Slug. 44828_ Slug penetrates Wall. 44836_ Penetrated by Slug. 44836_ Slug penetrates Wall. 44855_ Triggered Stasis Trap. 44855_ A bubble of rippling energy engulfs the area. 44855_ Field strength at 77. 44856_ Field strength at 54. 44857_ Field strength at 31. 44858_ Field strength at 8. 44859_ Stasis field depleted. 44859_ Identified Imp. Matter Neutralizer. 44863_ K-01 Serf cleans the Garrison Access. 44864_ System corrupted: Component data lost. 44866_ K-01 Serf cleans the Garrison Access. 44867_ Slug penetrates Wall. Map ----- +----------------------------------------------------+ | ?????????????# #????? | | ?????????????# * #????? | | ?????????????# /% %[% ^ #????? | | ?????????????# * "= [ #????? | | ?????????????# # k""" " #????? | | ?????????????######### uG """ #????? | | ??????????????????## """ s """ #????? | | ####??????????????# " " #????? | | """#??????????????## u #????? | | """################# ???? | | #????? | | # #????? | | ## ######???????? | | "" ################# ########? #????????????? | | "" #???????????????# #??????????????????????? | | "" #?????#?????????+ #??????????????????????? | | "" #?????# ????????# #??????????????????????? | | "" ####??# ???????# #??????????????????????? | | #??# = ??????# #??????????????????????? | | #???? ?????# #??????????????????????? | | h ####??! ????# #??????????????????????? | | #???? ???# #??????????????????????? | | ![[ h #?????#;### #??????????????????????? | | ![[ h ########;;# #??????????????????????? | | [[[ p p #??????????????????????? | | ########### ######## @#??????????????????????? | | ??????????# #?# # #??????????????????????? | | ??????????#+#?# + #??????????????????????? | | ????????? # #####+##??????????????????????? | | ???????# # #?? ??????????????????????? | | ???????# # ! # ????????????????????? | | ???????# # # ! #???????????????????? | | ???????# # # #???????????????????? | | ???????# # # !* #???????????????????? | | ???????# # # *! #???????????????????? | | ???????# ###### #???????????????????? | | ???????# #????# ! #???????????????????? | | ???????+ #????###########???????????????????? | | ???????# #??????????????????????????????????? | | ???????# #??????????????????????????????????? | | ???????# #??????????????????????????????????? | | ???????# [ #??????????????????????????????????? | | ???????########??????????????????????????????????? | | ?????????????????????????????????????????????????? | | ?????????????????????????????????????????????????? | | ?????????????????????????????????????????????????? | | ?????????????????????????????????????????????????? | | ?????????????????????????????????????????????????? | | ?????????????????????????????????????????????????? | | ?????????????????????????????????????????????????? | +----------------------------------------------------+ Best States ------------- Heat Dissipation 147 Coolant Potential 200 Energy Generation 65 Energy Capacity 1500 Matter Stores 600 Matter Capacity 600 Sight Range 24 Robot Scan Range 20 Terrain Scan Density 10 Jamming Range 8 Cloak Strength 4 Armor Coverage 1600 Resistance: TH 50 Resistance: EM 90 Weapon Cycling 15 Evasion (%) 69 Targeting Accuracy 16 Target Analysis 12 Armor Integrity Analysis 90 Recoil Reduction 6 Kinecelleration 50 Salvage Targeting 2 Offensive Hacking 21 Defensive Hacking 20 Item Schematics ----------------- Hcp. Storage Unit | -10/Materials | Hacked Lrg. Storage Unit | -9/Materials | Scanalyzed Humpback | -7/Factory | Scanalyzed Imp. System Shield | -6/Factory | Hacked Combat Drone Bay | -6/Data Miner | Free Lgt. Regenerative Plating | -6/Data Miner | Free Exp. Flexi-carbon Leg | -6/Data Miner | Free Exp. Terrain Scanner | -6/Data Miner | Free Exp. Transmission Jammer | -6/Data Miner | Free Plasma Sword | -6/Data Miner | Free Imp. Energy Well | -5/Factory | Scanalyzed Weapon Cycler | -5/Factory | Scanalyzed Assault Drone Bay | -5/Zhirov | Free Exp. Heat Sink | -5/Zhirov | Free Exp. Optical Array | -5/Zhirov | Free Imp. Arc Thrower | -5/Zhirov | Free Powered Armor | -4/Factory | Hacked Imp. Hacking Suite | -4/Factory | Hacked Robot Schematics ------------------ S-27 Virus | -6/Data Miner | Free G-50 Soldier | -6/Data Miner | Free G-67 Veteran | -6/Data Miner | Free L-41 Fighter | -6/Data Miner | Free X-72 Disruptor | -6/Data Miner | Free H-66 Slayer | -6/Data Miner | Free I-36 Angel | -6/Data Miner | Free I-47 Archangel | -6/Data Miner | Free Fabricated ------------ Humpback | x1 | -7/Factory Humpback | x1 | -7/Factory Hcp. Storage Unit | x1 | -5/Factory Hcp. Storage Unit | x1 | -4/Factory Powered Armor | x2 | -4/Factory Adv. Heavy Siege Treads | x2 | -4/Factory | Preloaded Adv. Heavy Siege Treads | x2 | -4/Factory | Preloaded Alien Tech Used ----------------- Integrated Reactor Transdimensional Reconstructor Achievements -------------- Minesweeper Shocking Conclusion Challenges ------------ None Game ------ Seed MeleeActuatorFlail Manual? 0 Play Time 06:40:33 Cumulative 269.4 hours Start 2020.11.12 @ 20:12:21 End 2020.12.16 @ 13:23:40 Sessions 13 Manual Loads 0 Difficulty Rogue Special Mode Halloween2020/ForbiddenLore Game No. 106 Rogue 106 Adventurer 0 Explorer 0 Win Type - Total 8 Types 6/0/1/1/0/0/0/0/0 Lore% 57 Gallery% 85 Achievement% 65 Wizard Run 0 Options --------- ASCII 0 Keyboard 0 Movement Numpad Keybinds 0 Fullscreen 1 Font 18/SmallcapsGlow Map View 76x50 Tactical HUD 1 Map Filters NONE Filters NONE Steam 1 RUN: f9731a23-19ee-4df9-8d26-f3133d19df19